[Event "Early-Titled-Tuesday-Blitz-March-19-2024"]
[Site "Chess.com"]
[Date "2024.03.19"]
[Round "6"]
[White "Zavgorodniy_Sergiy"]
[Black "Robert_Chessmood"]
[Result "0-1"]
[WhiteElo "2624"]
[BlackElo "2962"]
[TimeControl "180+1"]
[EndTime "9:08:47 PDT"]
[Termination "Robert_Chessmood won on time"]

1. d4 {[%clk 0:02:58]} 1... Nf6 {[%clk 0:02:57.6]} 2. c4 {[%clk 0:02:58.2]} 2...
e6 {[%clk 0:02:58.1]} 3. Nf3 {[%clk 0:02:58.4]} 3... Bb4+ {[%clk 0:02:58.1]} 4.
Nbd2 {[%clk 0:02:58]} 4... O-O {[%clk 0:02:56.5]} 5. g3 {[%clk 0:02:57.8]} 5...
d5 {[%clk 0:02:54.4]} 6. Qc2 {[%clk 0:02:57.5]} 6... b6 {[%clk 0:02:42.4]} 7.
Bg2 {[%clk 0:02:57]} 7... dxc4 {[%clk 0:02:32.6]} 8. Qxc4 {[%clk 0:02:55]} 8...
a5 {[%clk 0:02:32.5]} 9. a3 {[%clk 0:02:52.2]} 9... Be7 {[%clk 0:02:27]} 10. O-O
{[%clk 0:02:50.8]} 10... Ba6 {[%clk 0:02:26.7]} 11. Qc2 {[%clk 0:02:46.3]} 11...
Bxe2 {[%clk 0:02:26.5]} 12. Re1 {[%clk 0:02:41]} 12... Ba6 {[%clk 0:02:22.8]}
13. Ng5 {[%clk 0:02:37.9]} 13... Ra7 {[%clk 0:02:20.4]} 14. Nde4 {[%clk
0:02:37.1]} 14... Nbd7 {[%clk 0:02:17.2]} 15. Bf4 {[%clk 0:02:31.6]} 15... h6
{[%clk 0:02:11]} 16. Nf3 {[%clk 0:02:23.8]} 16... Nxe4 {[%clk 0:02:04.2]} 17.
Qxe4 {[%clk 0:02:24.7]} 17... Bb7 {[%clk 0:01:59.2]} 18. Qc2 {[%clk 0:02:24.5]}
18... Bd5 {[%clk 0:01:56.5]} 19. Rac1 {[%clk 0:02:23.4]} 19... c5 {[%clk
0:01:52.2]} 20. dxc5 {[%clk 0:02:20.4]} 20... Nxc5 {[%clk 0:01:50.2]} 21. b4
{[%clk 0:02:17.4]} 21... axb4 {[%clk 0:01:47.3]} 22. axb4 {[%clk 0:02:18.3]}
22... Nb3 {[%clk 0:01:39.6]} 23. Rb1 {[%clk 0:02:17.2]} 23... Bxf3 {[%clk
0:01:33.7]} 24. Bxf3 {[%clk 0:02:15]} 24... Nd4 {[%clk 0:01:33.9]} 25. Qe4
{[%clk 0:02:14]} 25... Nxf3+ {[%clk 0:01:30.5]} 26. Qxf3 {[%clk 0:02:14.9]}
26... Qa8 {[%clk 0:01:20.9]} 27. Qe3 {[%clk 0:02:07.2]} 27... b5 {[%clk
0:01:17.6]} 28. Red1 {[%clk 0:02:01.7]} 28... Rd8 {[%clk 0:01:10.4]} 29. Rxd8+
{[%clk 0:01:44.7]} 29... Bxd8 {[%clk 0:01:11.3]} 30. Bd6 {[%clk 0:01:42.2]}
30... Ra1 {[%clk 0:01:05.9]} 31. Rxa1 {[%clk 0:01:38.3]} 31... Qxa1+ {[%clk
0:01:06.8]} 32. Kg2 {[%clk 0:01:38.9]} 32... Qa8+ {[%clk 0:01:05.7]} 33. Kg1
{[%clk 0:01:35.2]} 33... Qd5 {[%clk 0:01:04.9]} 34. Bc5 {[%clk 0:01:32.1]} 34...
Bg5 {[%clk 0:01:00]} 35. Qe2 {[%clk 0:01:30]} 35... Qd7 {[%clk 0:00:54.6]} 36.
h4 {[%clk 0:01:27.1]} 36... Bf6 {[%clk 0:00:54.3]} 37. h5 {[%clk 0:01:24.1]}
37... Qc6 {[%clk 0:00:50.3]} 38. Qd3 {[%clk 0:01:21.4]} 38... e5 {[%clk
0:00:38.2]} 39. Kh2 {[%clk 0:01:14.1]} 39... e4 {[%clk 0:00:37.4]} 40. Qd2
{[%clk 0:01:10.2]} 40... Bg5 {[%clk 0:00:28.2]} 41. Qd1 {[%clk 0:01:06.3]} 41...
Qe6 {[%clk 0:00:23.2]} 42. Kg2 {[%clk 0:01:02.4]} 42... Kh7 {[%clk 0:00:15.3]}
43. Qe2 {[%clk 0:00:59]} 43... Qc6 {[%clk 0:00:15.2]} 44. Qa2 {[%clk 0:00:53.8]}
44... f5 {[%clk 0:00:14.2]} 45. Qf7 {[%clk 0:00:50.9]} 45... e3+ {[%clk
0:00:10.5]} 46. Kg1 {[%clk 0:00:42]} 46... exf2+ {[%clk 0:00:10.3]} 47. Kxf2
{[%clk 0:00:42.9]} 47... Qf6 {[%clk 0:00:10.2]} 48. Qe8 {[%clk 0:00:38.7]} 48...
Qb2+ {[%clk 0:00:08.9]} 49. Kg1 {[%clk 0:00:37.9]} 49... Qa1+ {[%clk 0:00:07.5]}
50. Kg2 {[%clk 0:00:36.3]} 50... Qa2+ {[%clk 0:00:06.6]} 51. Kh3 {[%clk
0:00:34.2]} 51... Qd5 {[%clk 0:00:05.3]} 52. Qg6+ {[%clk 0:00:31.2]} 52... Kh8
{[%clk 0:00:05.6]} 53. Qe8+ {[%clk 0:00:31.5]} 53... Qg8 {[%clk 0:00:06.2]} 54.
Qxb5 {[%clk 0:00:24.3]} 54... f4 {[%clk 0:00:06.3]} 55. gxf4 {[%clk 0:00:20.3]}
55... Bxf4 {[%clk 0:00:03.3]} 56. Qd3 {[%clk 0:00:12.2]} 56... Qe6+ {[%clk
0:00:03]} 57. Kh4 {[%clk 0:00:10.3]} 57... Qf6+ {[%clk 0:00:02.5]} 58. Kh3
{[%clk 0:00:08.2]} 58... Qe6+ {[%clk 0:00:03]} 59. Kh4 {[%clk 0:00:07.7]} 59...
Bg5+ {[%clk 0:00:03.5]} 60. Kg3 {[%clk 0:00:07.1]} 60... Qe5+ {[%clk 0:00:04.4]}
61. Kh3 {[%clk 0:00:06.4]} 61... Qe6+ {[%clk 0:00:04.1]} 62. Kg3 {[%clk
0:00:06.4]} 62... Qe1+ {[%clk 0:00:04.1]} 63. Kg2 {[%clk 0:00:06]} 63... Qe8
{[%clk 0:00:02.9]} 64. Qf3 {[%clk 0:00:05.1]} 64... Qd8 {[%clk 0:00:01.3]} 65.
b5 {[%clk 0:00:03.4]} 65... Bf6 {[%clk 0:00:01.5]} 66. Bf2 {[%clk 0:00:03.2]}
66... Qd2 {[%clk 0:00:01.8]} 67. b6 {[%clk 0:00:03.5]} 67... Qg5+ {[%clk
0:00:02.1]} 68. Kh3 {[%clk 0:00:03.1]} 68... Qb5 {[%clk 0:00:02.6]} 69. b7
{[%clk 0:00:03]} 69... Kg8 {[%clk 0:00:02]} 70. Bg3 {[%clk 0:00:03]} 70... Qd7+
{[%clk 0:00:01.6]} 71. Qg4 {[%clk 0:00:02.3]} 71... Qxb7 {[%clk 0:00:01.7]} 72.
Qe6+ {[%clk 0:00:01.7]} 72... Kf8 {[%clk 0:00:01.2]} 0-1

[Event "Early-Titled-Tuesday-Blitz-March-19-2024"]
[Site "Chess.com"]
[Date "2024.03.19"]
[Round "6"]
[White "MightyMike_009"]
[Black "HajiyevKanan"]
[Result "1/2-1/2"]
[WhiteElo "2715"]
[BlackElo "2537"]
[TimeControl "180+1"]
[EndTime "9:08:47 PDT"]
[Termination "Game drawn - insufficient material"]

1. d4 {[%clk 0:03:00.9]} 1... d5 {[%clk 0:02:59.8]} 2. c4 {[%clk 0:03:01.2]}
2... c6 {[%clk 0:03:00]} 3. Nf3 {[%clk 0:03:00.7]} 3... Nf6 {[%clk 0:03:00.6]}
4. Nc3 {[%clk 0:03:00.9]} 4... a6 {[%clk 0:03:00.7]} 5. e3 {[%clk 0:02:59]} 5...
Bg4 {[%clk 0:02:59.9]} 6. h3 {[%clk 0:02:57.8]} 6... Bxf3 {[%clk 0:03:00.2]} 7.
Qxf3 {[%clk 0:02:57.6]} 7... e6 {[%clk 0:03:01.1]} 8. Bd2 {[%clk 0:02:55.6]}
8... Bb4 {[%clk 0:03:01.1]} 9. Bd3 {[%clk 0:02:54.4]} 9... O-O {[%clk
0:03:01.3]} 10. O-O {[%clk 0:02:54.4]} 10... Qe7 {[%clk 0:03:01.4]} 11. a3
{[%clk 0:02:52.5]} 11... Bd6 {[%clk 0:03:01.5]} 12. b4 {[%clk 0:02:49.6]} 12...
dxc4 {[%clk 0:03:00.6]} 13. Bxc4 {[%clk 0:02:50.5]} 13... Nbd7 {[%clk
0:02:56.6]} 14. Rfe1 {[%clk 0:02:24.8]} 14... e5 {[%clk 0:02:53]} 15. Bb3 {[%clk
0:02:02.9]} 15... e4 {[%clk 0:02:43]} 16. Qe2 {[%clk 0:01:56.9]} 16... Nb6
{[%clk 0:02:42.9]} 17. f3 {[%clk 0:01:52.5]} 17... Bg3 {[%clk 0:02:38.7]} 18.
fxe4 {[%clk 0:01:39.7]} 18... Bxe1 {[%clk 0:02:37.5]} 19. Bxe1 {[%clk
0:01:14.7]} 19... Nxe4 {[%clk 0:02:37.2]} 20. Nxe4 {[%clk 0:01:15.1]} 20... Qxe4
{[%clk 0:02:37.2]} 21. Bc2 {[%clk 0:01:15.6]} 21... Qe6 {[%clk 0:02:32.6]} 22.
Qd3 {[%clk 0:01:14.3]} 22... g6 {[%clk 0:02:27.5]} 23. Bg3 {[%clk 0:01:12.8]}
23... Rfe8 {[%clk 0:02:27.2]} 24. e4 {[%clk 0:01:09.7]} 24... Qc4 {[%clk
0:02:24.6]} 25. Qd2 {[%clk 0:01:04]} 25... Rad8 {[%clk 0:02:23.2]} 26. Rd1
{[%clk 0:01:03.3]} 26... Qa2 {[%clk 0:02:13.6]} 27. Qd3 {[%clk 0:00:54.8]} 27...
Qc4 {[%clk 0:01:39.7]} 28. Qd2 {[%clk 0:00:54.9]} 28... Rd7 {[%clk 0:01:37]} 29.
Kh2 {[%clk 0:00:51.7]} 29... Qa2 {[%clk 0:01:29.1]} 30. Qd3 {[%clk 0:00:51.5]}
30... Qc4 {[%clk 0:01:12.4]} 31. Qd2 {[%clk 0:00:51.8]} 31... Red8 {[%clk
0:01:10.6]} 32. Be5 {[%clk 0:00:51.3]} 32... Qe6 {[%clk 0:01:04.9]} 33. Qf4
{[%clk 0:00:44.8]} 33... f6 {[%clk 0:00:59.5]} 34. Qxf6 {[%clk 0:00:36.3]} 34...
Qxf6 {[%clk 0:00:57.6]} 35. Bxf6 {[%clk 0:00:37.2]} 35... Nc4 {[%clk 0:00:46.5]}
36. Bb3 {[%clk 0:00:35.6]} 36... b5 {[%clk 0:00:46.9]} 37. Bxd8 {[%clk
0:00:34.9]} 37... Rxd8 {[%clk 0:00:45.6]} 38. Kg3 {[%clk 0:00:32.2]} 38... a5
{[%clk 0:00:30.9]} 39. Kf3 {[%clk 0:00:27.7]} 39... axb4 {[%clk 0:00:27.9]} 40.
axb4 {[%clk 0:00:28.6]} 40... Ra8 {[%clk 0:00:27.7]} 41. Bxc4+ {[%clk 0:00:28]}
41... bxc4 {[%clk 0:00:28.6]} 42. Rc1 {[%clk 0:00:27.9]} 42... Ra3+ {[%clk
0:00:28.1]} 43. Kf4 {[%clk 0:00:27.9]} 43... c3 {[%clk 0:00:28.7]} 44. Ke5
{[%clk 0:00:25.7]} 44... Rb3 {[%clk 0:00:27.6]} 45. d5 {[%clk 0:00:20.7]} 45...
cxd5 {[%clk 0:00:25.1]} 46. exd5 {[%clk 0:00:20.9]} 46... Kf7 {[%clk 0:00:23.4]}
47. Kd6 {[%clk 0:00:20.6]} 47... h5 {[%clk 0:00:11.1]} 48. b5 {[%clk 0:00:20.8]}
48... h4 {[%clk 0:00:09.8]} 49. Kc6 {[%clk 0:00:20.5]} 49... Ke7 {[%clk
0:00:06.9]} 50. b6 {[%clk 0:00:20.7]} 50... Kd8 {[%clk 0:00:07.2]} 51. b7 {[%clk
0:00:21.1]} 51... g5 {[%clk 0:00:07.5]} 52. Kd6 {[%clk 0:00:18.5]} 52... Rb6+
{[%clk 0:00:06.2]} 53. Ke5 {[%clk 0:00:18.3]} 53... Rxb7 {[%clk 0:00:06.8]} 54.
Rxc3 {[%clk 0:00:10.9]} 54... Rb2 {[%clk 0:00:07.5]} 55. Kd6 {[%clk 0:00:10.1]}
55... Rxg2 {[%clk 0:00:07.1]} 56. Rf3 {[%clk 0:00:10.3]} 56... Ke8 {[%clk
0:00:07.1]} 57. Re3+ {[%clk 0:00:09.7]} 57... Kf7 {[%clk 0:00:06.5]} 58. Rf3+
{[%clk 0:00:07.5]} 58... Kg6 {[%clk 0:00:06]} 59. Ke7 {[%clk 0:00:06.9]} 59...
Re2+ {[%clk 0:00:05.5]} 60. Kd6 {[%clk 0:00:05.8]} 60... Rg2 {[%clk 0:00:02.8]}
61. Re3 {[%clk 0:00:06.2]} 61... Rg3 {[%clk 0:00:02.9]} 62. Re6+ {[%clk
0:00:06.3]} 62... Kf5 {[%clk 0:00:03.2]} 63. Re5+ {[%clk 0:00:06.6]} 63... Kf4
{[%clk 0:00:03.7]} 64. Ke6 {[%clk 0:00:07.1]} 64... Rxh3 {[%clk 0:00:04.2]} 65.
d6 {[%clk 0:00:07.8]} 65... Rd3 {[%clk 0:00:04.6]} 66. Rf5+ {[%clk 0:00:05.9]}
66... Kg4 {[%clk 0:00:04.5]} 67. Rd5 {[%clk 0:00:01.8]} 67... Re3+ {[%clk
0:00:05.1]} 68. Kf6 {[%clk 0:00:02.1]} 68... Re8 {[%clk 0:00:05.2]} 69. d7
{[%clk 0:00:02.7]} 69... Rd8 {[%clk 0:00:05.4]} 70. Rxg5+ {[%clk 0:00:02.9]}
70... Kf4 {[%clk 0:00:04.5]} 71. Rd5 {[%clk 0:00:01.5]} 71... h3 {[%clk
0:00:04.3]} 72. Ke7 {[%clk 0:00:01.7]} 72... Rh8 {[%clk 0:00:04.6]} 73. d8=Q
{[%clk 0:00:01.8]} 73... Rxd8 {[%clk 0:00:04.7]} 74. Kxd8 {[%clk 0:00:02.7]}
74... h2 {[%clk 0:00:05.4]} 75. Rh5 {[%clk 0:00:03.1]} 75... Kg3 {[%clk
0:00:05.6]} 76. Ke7 {[%clk 0:00:03.7]} 76... Kg2 {[%clk 0:00:06.2]} 77. Rxh2+
{[%clk 0:00:04]} 77... Kxh2 {[%clk 0:00:06.6]} 1/2-1/2

[Event "Early-Titled-Tuesday-Blitz-March-19-2024"]
[Site "Chess.com"]
[Date "2024.03.19"]
[Round "6"]
[White "ragnaroek66"]
[Black "Vaibhavraut99"]
[Result "0-1"]
[WhiteElo "2529"]
[BlackElo "2714"]
[TimeControl "180+1"]
[EndTime "9:08:50 PDT"]
[Termination "Vaibhavraut99 won by resignation"]

1. d4 {[%clk 0:03:00.9]} 1... Nf6 {[%clk 0:02:56.8]} 2. c4 {[%clk 0:03:01.1]}
2... e6 {[%clk 0:02:57.2]} 3. Nf3 {[%clk 0:03:01.3]} 3... b6 {[%clk 0:02:57.1]}
4. g3 {[%clk 0:03:01.3]} 4... Bb7 {[%clk 0:02:57.5]} 5. Bg2 {[%clk 0:03:01.8]}
5... Be7 {[%clk 0:02:57.1]} 6. O-O {[%clk 0:03:02]} 6... O-O {[%clk 0:02:57.5]}
7. Nc3 {[%clk 0:02:58.9]} 7... Bb4 {[%clk 0:02:57.5]} 8. Bd2 {[%clk 0:02:50.9]}
8... Bxc3 {[%clk 0:02:57.2]} 9. Bxc3 {[%clk 0:02:51.8]} 9... Be4 {[%clk
0:02:57.5]} 10. Re1 {[%clk 0:02:16.1]} 10... d6 {[%clk 0:02:55.9]} 11. Bf1
{[%clk 0:02:15.5]} 11... Nbd7 {[%clk 0:02:53.4]} 12. Nd2 {[%clk 0:02:14.3]}
12... Bb7 {[%clk 0:02:53.9]} 13. e4 {[%clk 0:02:13.3]} 13... e5 {[%clk
0:02:54.3]} 14. Bg2 {[%clk 0:02:13.1]} 14... a5 {[%clk 0:02:51.1]} 15. b3 {[%clk
0:02:11.2]} 15... exd4 {[%clk 0:02:46.8]} 16. Bxd4 {[%clk 0:02:10.6]} 16... Nc5
{[%clk 0:02:45.6]} 17. Qc2 {[%clk 0:02:10.6]} 17... Re8 {[%clk 0:02:42.1]} 18.
h3 {[%clk 0:02:06.9]} 18... Nfd7 {[%clk 0:02:27.8]} 19. Rad1 {[%clk 0:01:58.5]}
19... h5 {[%clk 0:02:22.4]} 20. Ba1 {[%clk 0:01:46.2]} 20... h4 {[%clk
0:02:11.7]} 21. Qc3 {[%clk 0:01:46.2]} 21... Qf6 {[%clk 0:02:07.2]} 22. Qxf6
{[%clk 0:01:09.3]} 22... Nxf6 {[%clk 0:02:08.1]} 23. Bxf6 {[%clk 0:01:04.3]}
23... gxf6 {[%clk 0:02:09]} 24. gxh4 {[%clk 0:01:04.7]} 24... Kg7 {[%clk
0:01:57.6]} 25. Re3 {[%clk 0:01:04.6]} 25... Rh8 {[%clk 0:01:57.2]} 26. Rg3+
{[%clk 0:01:04.9]} 26... Kf8 {[%clk 0:01:56.9]} 27. Rg4 {[%clk 0:01:04.9]} 27...
Bc8 {[%clk 0:01:45.6]} 28. Rf4 {[%clk 0:01:04.7]} 28... Ke7 {[%clk 0:01:33.3]}
29. Nf3 {[%clk 0:00:34.6]} 29... Ne6 {[%clk 0:01:28.2]} 30. Rg4 {[%clk
0:00:34.4]} 30... Nc5 {[%clk 0:01:21.2]} 31. Rf4 {[%clk 0:00:33.2]} 31... Ne6
{[%clk 0:01:12.6]} 32. Rg4 {[%clk 0:00:33.2]} 32... Bb7 {[%clk 0:01:11.1]} 33.
Kh2 {[%clk 0:00:29.3]} 33... Rag8 {[%clk 0:01:07.6]} 34. Kg3 {[%clk 0:00:28.7]}
34... Rxg4+ {[%clk 0:01:07.2]} 35. hxg4 {[%clk 0:00:28.5]} 35... Bxe4 {[%clk
0:01:07.9]} 36. Re1 {[%clk 0:00:27]} 36... Bxf3 {[%clk 0:01:01.2]} 37. Bxf3
{[%clk 0:00:26.4]} 37... Kd7 {[%clk 0:01:01.9]} 38. Bd5 {[%clk 0:00:25.6]} 38...
a4 {[%clk 0:01:01.5]} 39. f4 {[%clk 0:00:20.8]} 39... c6 {[%clk 0:00:58.6]} 40.
Bxe6+ {[%clk 0:00:19.8]} 40... fxe6 {[%clk 0:00:59.5]} 41. f5 {[%clk 0:00:17.8]}
41... e5 {[%clk 0:00:52.9]} 42. g5 {[%clk 0:00:17.4]} 42... Ke7 {[%clk
0:00:49.2]} 43. Re2 {[%clk 0:00:16.3]} 43... d5 {[%clk 0:00:48.2]} 44. cxd5
{[%clk 0:00:14.5]} 44... cxd5 {[%clk 0:00:48.8]} 45. Kg4 {[%clk 0:00:14.4]}
45... d4 {[%clk 0:00:47.6]} 46. g6 {[%clk 0:00:12.7]} 46... d3 {[%clk
0:00:40.4]} 47. Re3 {[%clk 0:00:12.9]} 47... Rd8 {[%clk 0:00:39.3]} 48. Re1
{[%clk 0:00:09.5]} 48... Rd4+ {[%clk 0:00:36.8]} 49. Kf3 {[%clk 0:00:08.6]}
49... Rxh4 {[%clk 0:00:33.9]} 50. Ke3 {[%clk 0:00:08.9]} 50... axb3 {[%clk
0:00:23.5]} 51. axb3 {[%clk 0:00:08.8]} 51... Rd4 {[%clk 0:00:22.5]} 52. Kd2
{[%clk 0:00:08.6]} 52... Rf4 {[%clk 0:00:21.4]} 53. Rh1 {[%clk 0:00:06.7]} 53...
Rxf5 {[%clk 0:00:19]} 54. Rh7+ {[%clk 0:00:06.7]} 54... Ke6 {[%clk 0:00:17.5]}
55. Rb7 {[%clk 0:00:06.7]} 55... Rg5 {[%clk 0:00:17.9]} 56. g7 {[%clk
0:00:06.6]} 56... e4 {[%clk 0:00:16]} 57. Rxb6+ {[%clk 0:00:06.1]} 57... Kf7
{[%clk 0:00:10.6]} 58. Rb7+ {[%clk 0:00:06.2]} 58... Kg8 {[%clk 0:00:10.6]} 59.
Re7 {[%clk 0:00:05.1]} 59... f5 {[%clk 0:00:09.7]} 60. b4 {[%clk 0:00:05.7]}
60... Rg2+ {[%clk 0:00:09.5]} 61. Kc3 {[%clk 0:00:05.4]} 61... Rc2+ {[%clk
0:00:09.7]} 62. Kb3 {[%clk 0:00:05.8]} 62... Rc8 {[%clk 0:00:09.7]} 63. b5
{[%clk 0:00:05]} 63... d2 {[%clk 0:00:08.7]} 64. Rd7 {[%clk 0:00:05.3]} 64... e3
{[%clk 0:00:09.2]} 65. b6 {[%clk 0:00:05.9]} 65... e2 {[%clk 0:00:06.2]} 66. b7
{[%clk 0:00:06.2]} 66... d1=Q+ {[%clk 0:00:06.3]} 67. Rxd1 {[%clk 0:00:04.6]}
67... exd1=Q+ {[%clk 0:00:07.2]} 68. Kb4 {[%clk 0:00:05]} 68... Rb8 {[%clk
0:00:06.8]} 69. Kc5 {[%clk 0:00:05.2]} 69... f4 {[%clk 0:00:07.6]} 70. Kc6
{[%clk 0:00:06]} 70... Rxb7 {[%clk 0:00:07.7]} 71. Kxb7 {[%clk 0:00:06]} 71...
f3 {[%clk 0:00:08.6]} 72. Kc6 {[%clk 0:00:06.9]} 72... f2 {[%clk 0:00:09.5]} 73.
Kb7 {[%clk 0:00:07.8]} 73... f1=Q {[%clk 0:00:10]} 74. Kc6 {[%clk 0:00:08.7]}
74... Qc2+ {[%clk 0:00:10.2]} 75. Kb7 {[%clk 0:00:09.6]} 75... Qfb1+ {[%clk
0:00:10.4]} 0-1

[Event "Early-Titled-Tuesday-Blitz-March-19-2024"]
[Site "Chess.com"]
[Date "2024.03.19"]
[Round "6"]
[White "Polish_fighter3000"]
[Black "Oleksandr_Bortnyk"]
[Result "1/2-1/2"]
[WhiteElo "3157"]
[BlackElo "3055"]
[TimeControl "180+1"]
[EndTime "9:08:54 PDT"]
[Termination "Game drawn by repetition"]

1. e4 {[%clk 0:03:00.9]} 1... Nf6 {[%clk 0:02:58.7]} 2. e5 {[%clk 0:03:01.3]}
2... Nd5 {[%clk 0:02:58.6]} 3. d4 {[%clk 0:03:01.9]} 3... d6 {[%clk 0:02:59.1]}
4. Nf3 {[%clk 0:03:02.1]} 4... dxe5 {[%clk 0:02:59.7]} 5. Nxe5 {[%clk 0:03:02]}
5... c6 {[%clk 0:03:00.3]} 6. c3 {[%clk 0:02:52.2]} 6... Nd7 {[%clk 0:02:54.6]}
7. Nf3 {[%clk 0:02:51]} 7... N7f6 {[%clk 0:02:50.8]} 8. Nbd2 {[%clk 0:02:42.3]}
8... Bf5 {[%clk 0:02:46.4]} 9. Nc4 {[%clk 0:02:37.7]} 9... e6 {[%clk 0:02:44.4]}
10. Be2 {[%clk 0:02:37.8]} 10... Be7 {[%clk 0:02:44.2]} 11. Nh4 {[%clk
0:02:30.5]} 11... Be4 {[%clk 0:02:42]} 12. O-O {[%clk 0:02:30]} 12... O-O {[%clk
0:02:41]} 13. Nd2 {[%clk 0:02:23.2]} 13... c5 {[%clk 0:02:23.9]} 14. Nxe4 {[%clk
0:02:20.8]} 14... Nxe4 {[%clk 0:02:24.8]} 15. Nf3 {[%clk 0:02:21.2]} 15... Qb6
{[%clk 0:02:17.2]} 16. Bd3 {[%clk 0:02:08.3]} 16... Nef6 {[%clk 0:02:17.4]} 17.
dxc5 {[%clk 0:02:07.8]} 17... Bxc5 {[%clk 0:02:17]} 18. Qe2 {[%clk 0:02:08.3]}
18... Rfe8 {[%clk 0:02:15.1]} 19. Ne5 {[%clk 0:02:03.1]} 19... a5 {[%clk
0:02:07]} 20. a4 {[%clk 0:01:48.2]} 20... Qc7 {[%clk 0:01:59.9]} 21. Bd2 {[%clk
0:01:45.8]} 21... Bd6 {[%clk 0:01:58.3]} 22. Rae1 {[%clk 0:01:43.3]} 22... Rad8
{[%clk 0:01:55.7]} 23. Bb5 {[%clk 0:01:37.8]} 23... Re7 {[%clk 0:01:53.4]} 24.
Bc1 {[%clk 0:01:36.3]} 24... Qb8 {[%clk 0:01:31.5]} 25. g3 {[%clk 0:01:35.9]}
25... Nc7 {[%clk 0:01:27.5]} 26. Bc4 {[%clk 0:01:35.4]} 26... Ncd5 {[%clk
0:01:24.9]} 27. Nf3 {[%clk 0:01:18.4]} 27... Bc5 {[%clk 0:01:16.9]} 28. Rd1
{[%clk 0:01:15.9]} 28... Qc7 {[%clk 0:01:09.4]} 29. Bb3 {[%clk 0:01:04.8]} 29...
h6 {[%clk 0:01:00.6]} 30. Ne5 {[%clk 0:01:03.1]} 30... Bd6 {[%clk 0:00:59.3]}
31. Rfe1 {[%clk 0:01:03.2]} 31... Bc5 {[%clk 0:00:49.7]} 32. Bc2 {[%clk
0:01:02.2]} 32... Bd6 {[%clk 0:00:38.8]} 33. Rd4 {[%clk 0:01:00.7]} 33... Bxe5
{[%clk 0:00:36]} 34. Qxe5 {[%clk 0:01:00.2]} 34... Qxe5 {[%clk 0:00:36.9]} 35.
Rxe5 {[%clk 0:01:00.5]} 35... Red7 {[%clk 0:00:37.8]} 36. Kf1 {[%clk 0:00:56.1]}
36... b6 {[%clk 0:00:36.1]} 37. Re1 {[%clk 0:00:51.7]} 37... Rc8 {[%clk
0:00:32.3]} 38. Bd3 {[%clk 0:00:49]} 38... Rdc7 {[%clk 0:00:29.1]} 39. Ba6
{[%clk 0:00:48]} 39... Ra8 {[%clk 0:00:28.3]} 40. Bb5 {[%clk 0:00:48.4]} 40...
Rac8 {[%clk 0:00:28.8]} 41. h3 {[%clk 0:00:46]} 41... Kf8 {[%clk 0:00:28.3]} 42.
Red1 {[%clk 0:00:44.3]} 42... Rc5 {[%clk 0:00:27.1]} 43. Kg2 {[%clk 0:00:35.4]}
43... Ke7 {[%clk 0:00:24.6]} 44. f4 {[%clk 0:00:35.2]} 44... Kf8 {[%clk
0:00:22.6]} 45. Kf3 {[%clk 0:00:34.7]} 45... g6 {[%clk 0:00:23]} 46. Bd2 {[%clk
0:00:33.7]} 46... Nc7 {[%clk 0:00:22.1]} 47. Be2 {[%clk 0:00:32.2]} 47... Ncd5
{[%clk 0:00:22.4]} 48. Be1 {[%clk 0:00:32.4]} 48... h5 {[%clk 0:00:20.2]} 49.
Bf2 {[%clk 0:00:32]} 49... R5c7 {[%clk 0:00:19.8]} 50. Ba6 {[%clk 0:00:31.4]}
50... Ra8 {[%clk 0:00:19.6]} 51. Bb5 {[%clk 0:00:31.5]} 51... Rcc8 {[%clk
0:00:12.3]} 52. R4d3 {[%clk 0:00:31.6]} 52... Rab8 {[%clk 0:00:12.1]} 53. Bd4
{[%clk 0:00:30.1]} 53... Ng8 {[%clk 0:00:11.2]} 54. Ba6 {[%clk 0:00:21.2]} 54...
Re8 {[%clk 0:00:09.4]} 55. Be5 {[%clk 0:00:20.7]} 55... Ra8 {[%clk 0:00:10]} 56.
Bb7 {[%clk 0:00:20.4]} 56... Ra7 {[%clk 0:00:08.6]} 57. Bc6 {[%clk 0:00:16.7]}
57... Rc8 {[%clk 0:00:05]} 58. Bxd5 {[%clk 0:00:17]} 58... exd5 {[%clk
0:00:05.9]} 59. Rxd5 {[%clk 0:00:17.5]} 59... f6 {[%clk 0:00:06.8]} 60. Bd4
{[%clk 0:00:17]} 60... Rc6 {[%clk 0:00:07.5]} 61. Re1 {[%clk 0:00:09.1]} 61...
Ne7 {[%clk 0:00:07.3]} 62. Rb5 {[%clk 0:00:09.7]} 62... Rb7 {[%clk 0:00:07.6]}
63. g4 {[%clk 0:00:09]} 63... h4 {[%clk 0:00:07.1]} 64. Re3 {[%clk 0:00:06.8]}
64... Kf7 {[%clk 0:00:07.4]} 65. Ke2 {[%clk 0:00:06.6]} 65... Nc8 {[%clk
0:00:07.6]} 66. b3 {[%clk 0:00:05.1]} 66... Rd7 {[%clk 0:00:06.6]} 67. Kf3
{[%clk 0:00:04.1]} 67... Rdd6 {[%clk 0:00:07.1]} 68. f5 {[%clk 0:00:04.3]} 68...
g5 {[%clk 0:00:07]} 69. Re4 {[%clk 0:00:04.7]} 69... Na7 {[%clk 0:00:07.5]} 70.
Ke3 {[%clk 0:00:04.6]} 70... Nxb5 {[%clk 0:00:07.9]} 71. axb5 {[%clk 0:00:05.5]}
71... Rc7 {[%clk 0:00:07.2]} 72. Kd3 {[%clk 0:00:05.7]} 72... Re7 {[%clk
0:00:05.8]} 73. c4 {[%clk 0:00:05.8]} 73... Rxe4 {[%clk 0:00:03.7]} 74. Kxe4
{[%clk 0:00:06.7]} 74... Ke8 {[%clk 0:00:04.4]} 75. Ke3 {[%clk 0:00:05.1]} 75...
Kd7 {[%clk 0:00:04.6]} 76. Kd3 {[%clk 0:00:05]} 76... Kc8 {[%clk 0:00:03.3]} 77.
Ke4 {[%clk 0:00:05.3]} 77... Kd7 {[%clk 0:00:03]} 78. Ke3 {[%clk 0:00:05.7]}
78... Kc8 {[%clk 0:00:03.2]} 79. Ke4 {[%clk 0:00:05.6]} 79... Kd7 {[%clk
0:00:03.8]} 80. Ke3 {[%clk 0:00:04.1]} 80... Kc8 {[%clk 0:00:02.6]} 81. Kd3
{[%clk 0:00:04.3]} 81... Kd7 {[%clk 0:00:02.9]} 82. Ke4 {[%clk 0:00:04.7]} 82...
Kc8 {[%clk 0:00:03.5]} 83. Ke3 {[%clk 0:00:05.3]} 83... Kd7 {[%clk 0:00:04]} 84.
Ke4 {[%clk 0:00:05.1]} 84... Kc8 {[%clk 0:00:04.3]} 85. Ke3 {[%clk 0:00:05.7]}
85... Kd7 {[%clk 0:00:04.9]} 1/2-1/2